Cogmind - Beta 16.1 @@@ ROGUE MODE // 2026.02.12 @ 14:36:49 Player: opdo Result: Escaped! Performance ------------- Evolutions (9) 4500 Regions Visited (26) 5200 Robots Destroyed (60) 300 Value Destroyed (2176) 2176 Prototype IDs (29) 580 Alien Tech Used (1) 200 Bonus (20136) 20136 TOTAL SCORE: 33092 Bonus ------- High Alert Combat Kills 348 Follower Combat Kills 11003 Awakened Behemoth Slayer 1000 Met Data Miner 300 Met Imprinter 300 Met Warlord at Base 500 MAIN.C Attacked Warlord 500 Warlord Defense Kills 426 Built Enhanced Grunts 300 Met R17 at Cetus 500 Met R17 at Research 2000 Win 3000 Friendly Fire -41 Cogmind --------- Core Integrity 941/1600 Matter 102/300 Energy 90/100 System Corruption 7% Temperature Cool (0) Movement Rolling (124) Ox2 Location To Epsilon Eridani Parts ------- > --- POWER (3) -------- (None) > --- PROPULSION (7) --- Armored Medium Treads Armored Heavy Treads Armored Wheel Centrium Wheel > --- UTILITY (10) ----- High-capacity Storage Unit Advanced Signal Interpreter Improved Utility Shielding Improved Hacking Suite System Shield System Shield Advanced System Shield > --- WEAPON (6) ------- Linear Accelerator Linear Accelerator Fusion Bomb Launcher CR-A16's Behemoth Slayer > --- INVENTORY (20) --- Centrium Heavy Treads Improved Antigrav System Huge Storage Unit Medium Matter Pod (100) Centrium Medium Armor Plating Advanced Thermal Shield Improved Remote Force Field Long-range Tractor Beam Mobile Refinery Mk. CCLXVII Multirail Enhanced Hardcell Cannon Enhanced Hardcell Cannon Peak State ------------ > --- POWER ------------ Light Antimatter Reactor Compact Particle Reactor Quantum Reactor > --- PROPULSION ------- Medium Treads Advanced Medium Treads Centrium Heavy Treads Centrium Heavy Treads > --- UTILITY ---------- High-capacity Storage Unit Medium Matter Pod Improved Sensor Array Advanced Signal Interpreter Improved Transmission Jammer Light Regenerative Plating Improved Hacking Suite Advanced System Shield Long-range Tractor Beam > --- WEAPON ----------- Hardcell Cannon 1B-0RG's Assimilator > --- INVENTORY -------- Micro Antimatter Reactor Spiked Medium Treads Centrium Heavy Treads Centrium Heavy Treads Armored Wheel Centrium Wheel Huge Storage Unit Medium Matter Pod Compact Matter Pod Tactical Coordination Suite Centrium Medium Armor Plating Centrium Medium Armor Plating Advanced Thermal Shield Improved Remote Force Field System Shield Mobile Refinery Mk. CCLXVII Linear Accelerator CR-A16's Pointy Stick [Rating: 195] Favorites ----------- Power Neutrino Core Engine Light Ion Engine Power Core Neutrino Core Reactor Particle Reactor Propulsion Centrium Heavy Treads Treads Centrium Heavy Treads Leg Cargo Legs Wheel Centrium Wheel Utility Medium Matter Pod Device High-powered Tractor Beam Storage Medium Matter Pod Processor Machine Analyzer Hackware System Shield Protection Light Regenerative Plating Weapon 1B-0RG's Assimilator Energy Gun Medium Laser Ballistic Cannon Hardcell Cannon Launcher Missile Launcher Special Weapon Mining Laser Piercing Weapon CR-A16's Pointy Stick Special Melee Weapon 1B-0RG's Assimilator Build | -11 -10 -10 -10 -8 -7 -7 -7 -7 -6 -6 -6 -6 -6 -5 -5 -5 -5 -5 -4 -4 -4 -4 -3 -3 -2 -1 ------- Run | Yrd Mat Min Sub Mat Fac Low Low Dat Pro Fac Low Low Zio Pro Fac Ext Cet Arc Fac Upp Upp War Pro Res Res Acc Slots Evolved 18 | . . . . 4 2 . . . . 2 . . . . 2 . . . 2 . . . . 2 2 2 Power 2 | . . . . . . . . . . . . . . . 1 . . . . . . . . . 1 . Propulsion 5 | . . . . 1 . . . . . 1 . . . . 1 . . . . . . . . . 1 1 Utility 7 | . . . . . 2 . . . . 1 . . . . . . . . 1 . . . . 2 . 1 Weapon 4 | . . . . 3 . . . . . . . . . . . . . . 1 . . . . . . . Parts Attached 130 | 9 5 1 15 6 5 1 . . 1 6 2 5 2 9 8 5 3 1 7 3 3 2 . 7 14 10 Power 22 | 1 . . 2 1 2 1 . . . . . . . 2 2 1 . 1 2 1 1 . . 4 1 . Engine 6 | 1 . . 2 1 . . . . . . . . . 1 1 . . . . . . . . . . . Core 7 | . . . . . 2 1 . . . . . . . 1 1 1 . . . . 1 . . . . . Reactor 9 | . . . . . . . . . . . . . . . . . . 1 2 1 . . . 4 1 . Propulsion 42 | 2 2 . 5 2 . . . . . 3 . 3 1 1 5 1 2 . 1 . . . . 1 9 4 Treads 25 | . 2 . 3 . . . . . . 1 . 3 1 1 5 . 2 . 1 . . . . 1 3 2 Leg 14 | 2 . . 1 2 . . . . . 2 . . . . . . . . . . . . . . 6 1 Wheel 3 | . . . 1 . . . . . . . . . . . . 1 . . . . . . . . . 1 Hover . | . . . . . . . . . . . . . . . . . . . . . . . . . . . Flight . | . . . . . . . . . . . . . . . . . . . . . . . . . . . Utility 46 | 3 1 . 2 2 3 . . . 1 3 2 2 1 6 1 3 1 . 3 2 2 1 . 2 2 3 Device 20 | 2 . . 1 1 1 . . . . 3 1 . 1 2 . 2 . . 1 2 1 1 . 1 . . Storage 8 | 1 1 . . . . . . . . . 1 2 . 2 . . . . . . . . . 1 . . Processor 4 | . . . . 1 . . . . . . . . . . 1 1 . . 1 . . . . . . . Hackware 6 | . . . . . 1 . . . . . . . . . . . . . 1 . . . . . 2 2 Protection 8 | . . . 1 . 1 . . . 1 . . . . 2 . . 1 . . . 1 . . . . 1 Artifact . | . . . . . . . . . . . . . . . . . . . . . . . . . . . Weapon 20 | 3 2 1 6 1 . . . . . . . . . . . . . . 1 . . 1 . . 2 3 Energy Gun 5 | 3 1 1 . . . . . . . . . . . . . . . . . . . . . . . . Energy Cannon . | . . . . . . . . . . . . . . . . . . . . . . . . . . . Ballistic Gun . | . . . . . . . . . . . . . . . . . . . . . . . . . . . Ballistic Cannon 8 | . . . 4 . . . . . . . . . . . . . . . . . . 1 . . 1 2 Launcher 4 | . 1 . 1 . . . . . . . . . . . . . . . . . . . . . 1 1 Special Weapon 1 | . . . 1 . . . . . . . . . . . . . . . . . . . . . . . Impact Weapon . | . . . . . . . . . . . . . . . . . . . . . . . . . . . Slashing Weapon . | . . . . . . . . . . . . . . . . . . . . . . . . . . . Piercing Weapon 1 | . . . . . . . . . . . . . . . . . . . 1 . . . . . . . Special Melee Weapon 1 | . . . . 1 . . . . . . . . . . . . . . . . . . . . . . Unidentified Prototypes 7 | . . . . 1 . . . . . . 1 . . 1 . . 2 . . . 1 . . 1 . . Corrupted Parts 6 | . . . . . . . . . . . . . . 1 . . 2 . . . 1 . . 1 1 . System Corruption 25 | . . . . . . . . . . . . . . 1 . . 10 . . . 2 . . 10 2 . Parts Lost 43 | . . 2 5 . . . . . . 1 . 1 . 3 . 3 . . . 2 1 . . 2 7 16 Power 11 | . . 1 1 . . . . . . . . . . 1 . . . . . 1 1 . . 2 2 2 Propulsion 16 | . . . 3 . . . . . . . . 1 . 1 . 2 . . . . . . . . 3 6 Utility 11 | . . . . . . . . . . 1 . . . 1 . 1 . . . 1 . . . . 1 6 Weapon 5 | . . 1 1 . . . . . . . . . . . . . . . . . . . . . 1 2 Highest Loss Streak 15 | . . 1 2 . . . . . . 1 . 1 . 2 . 1 . . . 1 1 . . 1 4 15 To Critical Strikes . | . . . . . . . . . . . . . . . . . . . . . . . . . . . Average Backups 15 | 2 12 14 13 14 14 14 15 15 14 14 14 14 14 14 18 19 18 16 16 16 16 17 17 16 17 14 Power 1 | . 1 1 . 1 1 1 1 1 1 1 1 1 1 1 3 5 3 2 2 2 2 2 2 1 . . Propulsion 3 | 1 2 2 1 2 4 5 5 5 4 3 3 2 1 1 3 3 4 5 5 6 6 5 5 5 5 3 Utility 6 | . 2 4 5 4 3 4 4 4 4 5 7 7 9 10 10 9 8 8 8 8 8 8 9 8 9 8 Weapon 3 | . 6 7 6 5 5 4 5 5 5 4 3 3 2 1 1 1 1 1 . . . 1 1 1 1 2 Tool/Special . | . . . . . . . . . . . . . . . . . . . . . . . . . . . Unused Backups 39 | . 1 . 2 4 3 1 . . 1 2 . . 2 2 2 . 6 1 1 . 1 2 . 1 2 5 Power 5 | . . . . 2 . . . . . . . . . . . . 2 . 1 . . . . . . . Propulsion 13 | . . . . . . 1 . . 1 . . . . 1 2 . 2 . . . . 2 . 1 1 2 Utility 8 | . . . 2 1 1 . . . . . . . . . . . 2 1 . . . . . . . 1 Weapon 13 | . 1 . . 1 2 . . . . 2 . . 2 1 . . . . . . 1 . . . 1 2 Tool/Special . | . . . . . . . . . . . . . . . . . . . . . . . . . . . Average Slot Usage (%) 72 | . 100 98 93 51 64 66 66 66 66 69 69 74 75 74 76 76 70 66 69 69 69 70 70 71 69 59 Engine 3 | . 14 12 10 7 1 . . . . . . . . 3 5 5 5 3 . . . . . . . . Core 3 | . . . . . 4 6 6 6 6 5 5 5 6 2 5 5 5 5 . . 1 5 5 . . . Reactor 2 | . . . . . . . . . . . . . . . . . . 1 9 9 8 5 5 7 10 3 Treads 12 | . 11 28 24 . . . . . . 2 . 12 22 24 26 26 20 16 15 15 15 15 15 13 12 3 Leg 5 | . 16 . . 12 13 13 13 13 13 13 16 9 2 . . . . . . . . . . . 1 12 Device 11 | . 14 14 10 . 11 13 13 13 13 19 17 19 18 14 12 11 9 5 8 7 9 9 10 13 10 3 Storage 10 | . 14 14 13 7 6 6 6 6 6 5 10 11 12 15 12 12 11 12 11 12 10 10 15 17 9 6 Processor 3 | . . . . 6 6 6 6 6 6 5 5 1 . . 2 2 5 3 4 5 5 5 5 4 4 3 Hackware 2 | . . . . . 6 6 6 6 6 2 . . . . . . . . 4 4 . . . . 7 7 Protection 5 | . . . 3 7 6 6 6 6 6 5 5 5 6 5 5 5 6 11 5 5 9 9 5 4 4 4 Energy Gun 2 | . 27 24 2 . . . . . . . . . . . . . . . . . . . . . . . Ballistic Cannon 1 | . . . 22 . . . . . . . . . . . . . . . . . . 1 5 4 2 3 Special Melee Weapon 4 | . . . . 6 6 6 6 6 6 5 5 5 6 6 5 5 5 5 5 5 5 5 5 4 4 1 Peak Build Rating 195 | 9 8 8 33 103 110 113 113 113 113 120 121 121 108 108 127 130 153 158 171 173 172 175 170 179 195 195 Average Rating 114 | 5 7 7 11 97 108 112 113 113 112 119 116 112 108 106 122 127 143 153 168 167 168 170 170 176 186 130 On Entrance 113 | . 7 8 7 33 103 110 113 113 113 112 120 121 108 108 107 127 128 153 158 169 169 169 170 170 177 187 Avg Prop Armor Cover (%) 6 | . 9 . 12 8 . . . . . 5 . 3 3 . . . . . . . . . . 8 3 24 Naked Turns . | . . . . . . . . . . . . . . . . . . . . . . . . . . . Heaviest Build 170 | 12 29 29 33 89 91 99 99 99 99 108 110 129 105 123 141 145 142 146 149 147 149 170 164 154 161 148 Greatest Support 218 | 20 40 40 55 67 67 67 67 67 67 85 85 85 106 106 143 142 190 190 190 199 190 190 190 190 218 186 Greatest Overweight (x) 4 | 1 2 . 1 1 1 1 1 1 1 1 1 1 1 1 1 1 1 . . . . . . 1 1 4 Average Overweight (x) . | . . . . 1 1 1 1 1 1 1 1 1 . . . . . . . . . . . . . 1 Largest Inventory Capacity 20 | 8 15 15 15 15 15 15 15 15 15 15 15 20 15 20 20 20 20 20 20 20 20 20 20 20 20 20 Average Capacity 17 | 7 14 15 15 15 15 15 15 15 15 15 15 15 15 16 20 20 20 20 20 20 20 20 20 20 20 20 Most Carried 20 | 4 15 15 15 15 15 15 15 15 15 15 15 15 15 16 20 20 20 20 20 20 20 20 20 20 20 17 Average Carried 16 | 2 12 14 14 14 14 14 15 15 14 14 14 14 14 15 18 19 19 19 19 19 19 19 20 19 19 15 Final Capacity 20 | 8 15 15 15 15 15 15 15 15 15 15 15 15 15 20 20 20 20 20 20 20 20 20 20 20 20 20 Final Carried 20 | 4 15 15 15 15 14 15 15 15 15 15 14 15 15 16 20 20 20 20 20 19 20 20 20 19 17 13 Class Distribution -------------------- 45% | Mutant 24% | Commander-Mutant 16% | Scavenger-Mutant 6% | Derelict-Mutant 5% | Hacker-Mutant Dominant Class ---------------- Mutant | -10/Materials Mutant | -10/Mines Mutant | -10/Subcaves Mutant | -8/Materials Mutant | -7/Factory Mutant | -7/Lower Caves Mutant | -7/Lower Caves Mutant | -7/Data Miner Mutant | -6/Proximity Caves Mutant | -6/Factory Scavenger-Mutant | -6/Lower Caves Scavenger-Mutant | -6/Lower Caves Derelict-Mutant | -6/Zion Derelict-Mutant | -5/Proximity Caves Commander-Mutant | -5/Factory Commander-Mutant | -5/Extension Commander-Mutant | -5/Cetus Commander-Mutant | -5/Archives Commander-Mutant | -4/Factory Commander-Mutant | -4/Upper Caves Commander-Mutant | -4/Upper Caves Commander-Mutant | -4/Warlord Scavenger-Mutant | -3/Proximity Caves Mutant | -3/Research Hacker-Mutant | -2/Research Hacker-Mutant | -1/Access Resources | -11 -10 -10 -10 -8 -7 -7 -7 -7 -6 -6 -6 -6 -6 -5 -5 -5 -5 -5 -4 -4 -4 -4 -3 -3 -2 -1 ----------- Run | Yrd Mat Min Sub Mat Fac Low Low Dat Pro Fac Low Low Zio Pro Fac Ext Cet Arc Fac Upp Upp War Pro Res Res Acc Matter Collected 16952 | 290 70 40 527 728 318 600 324 . 464 330 388 287 20 1972 100 2151 168 676 1097 984 671 793 305 784 2733 132 Remotely 8270 | . . . . 24 283 600 324 . 464 330 388 204 20 1871 100 275 . . . . . . . 714 2673 . Salvage Created 2078 | 109 182 124 230 . . 10 . . . . . . . . . 27 . 121 358 111 . 191 . . . 615 Parts 95 | 8 14 4 14 . . 1 . . . . . . . . . 5 . 6 7 2 . 4 . . . 30 Haulers Intercepted 2 | . 1 . . . . . . . . . . . . . . . . . 1 . . . . . . . Recyclers Shooed . | . . . . . . . . . . . . . . . . . . . . . . . . . . . Parts Field Recycled . | . . . . . . . . . . . . . . . . . . . . . . . . . . . Retrieved Matter . | . . . . . . . . . . . . . . . . . . . . . . . . . . . Parts Self-Destructed 181 | . . . 16 . . 4 23 . 4 . 17 16 2 43 . . . . . 33 18 . 5 . . . Prevented 15 | . . . . . . 1 1 . 3 . . . . 10 . . . . . . . . . . . . Parts Restored . | . . . . . . . . . . . . . . . . . . . . . . . . . . . Kills | -11 -10 -10 -10 -8 -7 -7 -7 -7 -6 -6 -6 -6 -6 -5 -5 -5 -5 -5 -4 -4 -4 -4 -3 -3 -2 -1 ------- Run | Yrd Mat Min Sub Mat Fac Low Low Dat Pro Fac Low Low Zio Pro Fac Ext Cet Arc Fac Upp Upp War Pro Res Res Acc Combat Hostiles Destroyed 42 | . 7 8 10 . . 1 . . . . . . . . . . . . 2 2 . 3 . . . 9 Melee 5 | . . . . . . 1 . . . . . . . . . . . . 2 2 . . . . . . Guns 8 | . 5 3 . . . . . . . . . . . . . . . . . . . . . . . . Cannons 10 | . . . 7 . . . . . . . . . . . . . . . . . . 3 . . . . AOE 16 | . 2 5 2 . . . . . . . . . . . . . . . . . . . . . . 7 Classes Destroyed 16 | 2 5 . 2 . . . . . . . . . . . . . . 1 1 1 . 1 . . . 3 Worker 2 | . . . . . . . . . . . . . . . . . . . 1 . . . . . . 1 Builder 3 | . 1 . . . . . . . . . . . . . . 1 . . . . . . . . . 1 Tunneler 2 | 2 . . . . . . . . . . . . . . . . . . . . . . . . . . Hauler 2 | . 1 . . . . . . . . . . . . . . . . . 1 . . . . . . . Recycler 1 | 1 . . . . . . . . . . . . . . . . . . . . . . . . . . Operator 7 | . . . . . . . . . . . . . . . . . . 7 . . . . . . . . Watcher 1 | . 1 . . . . . . . . . . . . . . . . . . . . . . . . . Swarmer 15 | . 6 6 . . . 1 . . . . . . . . . . . . 1 1 . . . . . . Grunt 8 | . 1 2 . . . . . . . . . . . . . . . . 1 . . 2 . . . 2 Duelist 1 | . . . . . . . . . . . . . . . . . . . . . . 1 . . . . Hunter 2 | . . . . . . . . . . . . . . . . . . . . . . . . . . 2 Programmer 3 | . . . . . . . . . . . . . . . . . . . . . . . . . . 3 Behemoth 2 | . . . . . . . . . . . . . . . . . . . . . . . . . . 2 Artisan 1 | . . . 1 . . . . . . . . . . . . . . . . . . . . . . . Subdweller 10 | . . . 10 . . . . . . . . . . . . . . . . . . . . . . . Savage 1 | . . . . . . . . . . . . . . . . . . . . 1 . . . . . . Best Kill Streak 6 | 3 4 3 2 . . 1 . . . . . . . . . 1 . 2 1 1 . 2 . . . 6 Combat Bots Only 5 | . 3 3 2 . . 1 . . . . . . . . . . . . 1 1 . 2 . . . 5 Max Kills in Single Turn 2 | 1 1 2 1 . . 1 . . . . . . . . . 1 . 1 1 1 . 1 . . . 2 Gunslinging . | . . . . . . . . . . . . . . . . . . . . . . . . . . . Exploded 2 | . 1 2 1 . . . . . . . . . . . . . . . . . . . . . . 2 Melee 1 | . . . . . . 1 . . . . . . . . . . . . 1 1 . . . . . . Uniques/NPCs Destroyed . | . . . . . . . . . . . . . . . . . . . . . . . . . . . Combat | -11 -10 -10 -10 -8 -7 -7 -7 -7 -6 -6 -6 -6 -6 -5 -5 -5 -5 -5 -4 -4 -4 -4 -3 -3 -2 -1 -------- Run | Yrd Mat Min Sub Mat Fac Low Low Dat Pro Fac Low Low Zio Pro Fac Ext Cet Arc Fac Upp Upp War Pro Res Res Acc Hostile Shots Fired 1143 | . 51 20 53 36 39 104 11 . 6 41 12 16 . 46 4 99 28 . 48 52 9 17 12 22 110 307 Missed 366 | . 8 5 18 11 7 39 1 . 2 22 4 4 . 13 2 30 13 . 15 22 2 7 7 7 41 86 Hits 777 | . 43 15 35 25 32 65 10 . 4 19 8 12 . 33 2 69 15 . 33 30 7 10 5 15 69 221 Melee 12 | . . . . . . . . . 1 . . . . 2 . . . . . 4 . . . . 5 . Projectile 765 | . 43 15 35 25 32 65 10 . 3 19 8 12 . 31 2 69 15 . 33 26 7 10 5 15 64 221 AOE 9 | . . . . . 1 . . . . . . . . . . . . . . . . 2 . . 6 . Critical Strikes 30 | . . . . 1 2 . . . . 1 . 1 . 3 1 2 2 . 1 2 1 . . . 4 9 Part Disruptions 1 | . . . . . . . . . . . . . . . . . . . . . . . . 1 . . Damage Taken 17728 | . 355 150 800 427 698 684 172 . 124 275 271 315 . 783 139 1439 428 53 880 886 146 422 153 743 2659 4726 Core 2403 | . 86 21 92 129 109 129 26 . 20 24 . 28 . 92 20 105 67 10 129 73 12 97 . 64 411 659 Absorbed by Shields 314 | . . . . . . . . . . 5 . . . . . 156 128 8 . . . 17 . . . . Redirected to Shielding 12 | . . . . . . . . . . . . . . . . . . . . . . . . . . 12 Ignored by Resistances 235 | . . . . . . . . . . . . . . . . 133 102 . . . . . . . . . Regen/Repaired (Parts) 3592 | . . . . 129 196 189 106 . 62 60 120 91 . 187 20 337 131 1 214 135 22 379 126 311 638 138 Core Remaining (%) 71 | 100 . . 20 76 . . . . 59 . . . . 83 . . . 79 . . . . 72 95 71 58 Volleys Fired 142 | 11 29 12 54 . . . . . . . . . . . . . . . . . . 11 2 . 5 18 Largest 2 | 2 2 2 2 . . . . . . . . . . . . . . . . . . 1 1 . 1 2 Hottest 108 | 90 100 100 100 . . . . . . . . . . . . . . . . . . 55 55 . 58 108 Shots Fired 238 | 22 58 24 94 . . . . . . . . . . . . . . . . . . 11 2 . 5 22 Gun 107 | 22 56 18 11 . . . . . . . . . . . . . . . . . . . . . . . Cannon 91 | . . . 66 . . . . . . . . . . . . . . . . . . 11 2 . 5 7 Launcher 29 | . 2 6 6 . . . . . . . . . . . . . . . . . . . . . . 15 Special 11 | . . . 11 . . . . . . . . . . . . . . . . . . . . . . . Kinetic 91 | . . . 66 . . . . . . . . . . . . . . . . . . 11 2 . 5 7 Thermal 118 | 22 56 18 22 . . . . . . . . . . . . . . . . . . . . . . . Explosive 29 | . 2 6 6 . . . . . . . . . . . . . . . . . . . . . . 15 Electromagnetic . | . . . . . . . . . . . . . . . . . . . . . . . . . . . Robot Hit Streak 18 | 6 9 5 18 . . . . . . . . . . . . . . . . . . 6 . . 4 2 Robot Miss Streak 5 | 2 5 2 2 . . . . . . . . . . . . . . . . . . 1 2 . 1 3 Penetration Max . | . . . . . . . . . . . . . . . . . . . . . . . . . . . Secondary Targets 1 | . 1 . . . . . . . . . . . . . . . . . . . . . . . . . Max Gunslinging Chain 1 | . 1 . . . . . . . . . . . . . . . . . . . . . . . . . Shots Hit Robots 155 | 14 25 11 64 . . . . . . . . . . . . . . . 12 3 . 8 . . 4 14 Core Hits 85 | 4 12 12 15 . . 3 . . . . . . . . . 1 . 1 6 2 . 5 . . 2 22 Critical Kills . | . . . . . . . . . . . . . . . . . . . . . . . . . . . Critical Parts Destroyed . | . . . . . . . . . . . . . . . . . . . . . . . . . . . Critical Strikes 13 | . 2 1 7 . . . . . . . . . . . . . . . 1 1 . . . . 1 . Burn 6 | . 2 1 3 . . . . . . . . . . . . . . . . . . . . . . . Blast 5 | . . . 4 . . . . . . . . . . . . . . . . . . . . . 1 . Impale 2 | . . . . . . . . . . . . . . . . . . . 1 1 . . . . . . Melee Attacks 52 | . . . . . . . . . . . . . . . . . . . 24 17 . . . . . 11 Impact . | . . . . . . . . . . . . . . . . . . . . . . . . . . . Slashing . | . . . . . . . . . . . . . . . . . . . . . . . . . . . Piercing 52 | . . . . . . . . . . . . . . . . . . . 24 17 . . . . . 11 Sneak Attacks 4 | . . . . . . . . . . . . . . . . . . . 3 . . . . . . 1 Combat Hostiles . | . . . . . . . . . . . . . . . . . . . . . . . . . . . Follow-up Attacks . | . . . . . . . . . . . . . . . . . . . . . . . . . . . Damage Inflicted 5928 | 181 518 510 1375 . 15 27 . . . . . . . . . 21 . 292 585 105 . 411 44 . 186 1658 Guns 715 | 170 279 141 125 . . . . . . . . . . . . . . . . . . . . . . . Cannons 1474 | . . . 853 . . . . . . . . . . . . . . . . . . 391 44 . 186 . Explosions 2352 | . 228 364 397 . . . . . . . . . . . . . . . . . . . . . . 1363 Melee 985 | . . . . . . . . . . . . . . . . . . . 585 105 . . . . . 295 Ramming 402 | 11 11 5 . . 15 27 . . . . . . . . . 21 . 292 . . . 20 . . . . Kinetic 1474 | . . . 853 . . . . . . . . . . . . . . . . . . 391 44 . 186 . Thermal 715 | 170 279 141 125 . . . . . . . . . . . . . . . . . . . . . . . Explosive 2352 | . 228 364 397 . . . . . . . . . . . . . . . . . . . . . . 1363 Electromagnetic . | . . . . . . . . . . . . . . . . . . . . . . . . . . . Impact . | . . . . . . . . . . . . . . . . . . . . . . . . . . . Slashing . | . . . . . . . . . . . . . . . . . . . . . . . . . . . Piercing 985 | . . . . . . . . . . . . . . . . . . . 585 105 . . . . . 295 Highest Corruption 13 | . . . . . 2 2 3 3 3 . . . . 5 . . 10 10 2 3 5 5 . 13 2 7 Average Corruption 3 | . . . . . 1 2 2 3 3 . . . . 3 . . 7 10 2 2 3 5 . 12 2 5 Corruption Purged . | . . . . . . . . . . . . . . . . . . . . . . . . . . . Corruption Blocked . | . . . . . . . . . . . . . . . . . . . . . . . . . . . Effects 169 | . . . . . 3 14 19 2 9 . . . . 26 . . 14 20 10 9 10 1 . 19 10 3 Message Errors 44 | . . . . . . 5 6 . 5 . . . . 1 . . 6 8 2 3 1 . . 2 5 . Matter Fused 46 | . . . . . 1 2 4 1 . . . . . 8 . . 6 5 3 2 2 1 . 9 2 . Heat Flow Errors 23 | . . . . . . 3 2 . 2 . . . . 4 . . 1 4 . 3 2 . . 1 1 . Energy Discharges 24 | . . . . . . 3 3 . 2 . . . . 6 . . 1 1 1 . 2 . . 2 1 2 Parts Rejected 1 | . . . . . . . . . . . . . . . . . . . 1 . . . . . . . Parts Fused 3 | . . . . . . . 1 . . . . . . 1 . . . . . . . . . . 1 . Data Loss (minor) 19 | . . . . . 1 1 2 . . . . . . 4 . . . 1 2 . 3 . . 5 . . Data Loss (major) 6 | . . . . . 1 . 1 1 . . . . . 1 . . . . 1 1 . . . . . . Misfires 1 | . . . . . . . . . . . . . . . . . . . . . . . . . . 1 Alerts 2 | . . . . . . . . . . . . . . 1 . . . 1 . . . . . . . . Overload Shots . | . . . . . . . . . . . . . . . . . . . . . . . . . . . Overflow Damage 225 | . 30 . . . . . . . . . . . . . . . . 76 30 . . 24 . . 1 64 Projectiles 25 | . . . . . . . . . . . . . . . . . . . . . . 24 . . 1 . Explosions 35 | . 30 . . . . . . . . . . . . . . . . . . . . . . . . 5 Melee 165 | . . . . . . . . . . . . . . . . . . 76 30 . . . . . . 59 Knockbacks 16 | 1 . . 8 . . . . . . . . . . . . . . 1 . . . 3 1 . 2 . Impact 2 | 1 . . . . . . . . . . . . . . . . . 1 . . . . . . . . Kinetic 14 | . . . 8 . . . . . . . . . . . . . . . . . . 3 1 . 2 . Secondary . | . . . . . . . . . . . . . . . . . . . . . . . . . . . Self-Inflicted Damage 22 | . . . . . . . . . . . . . . . . . . . . . . . . . . 22 Shots 2 | . . . . . . . . . . . . . . . . . . . . . . . . . . 2 Rammed 16 | . 1 2 . . . . . . . . . . . . . 1 . 10 . . . 2 . . . . Targets Rammed 34 | 1 5 2 . 1 3 4 . . . . . . . . . 1 . 15 . . . 2 . . . . Kicked 13 | 1 4 . . 1 3 4 . . . . . . . . . . . . . . . . . . . . Crushed 5 | . . . . . . . . . . . . . . . . . . 5 . . . . . . . . Highest Temperature 463 | 90 463 220 . 8 . 201 212 . 198 5 . 441 . 194 . 5 158 326 8 172 232 57 24 186 119 . Average Temperature 102 | 39 154 66 . 8 . 84 93 . 103 5 . 220 . 82 . 2 125 142 8 77 108 21 12 81 27 . Received Heat Transfer 2086 | . 6 45 153 171 . 150 . . 9 87 9 72 . 231 9 294 65 7 198 51 67 36 . 102 324 . Effects 4 | . 3 . . . . . . . . . . . . . . . . 1 . . . . . . . . Shutdowns 2 | . 2 . . . . . . . . . . . . . . . . . . . . . . . . . Energy Bleed 1 | . . . . . . . . . . . . . . . . . . 1 . . . . . . . . Short Circuit 1 | . 1 . . . . . . . . . . . . . . . . . . . . . . . . . Siege Activations . | . . . . . . . . . . . . . . . . . . . . . . . . . . . Martial Activations . | . . . . . . . . . . . . . . . . . . . . . . . . . . . Shielding Activations . | . . . . . . . . . . . . . . . . . . . . . . . . . . . Robots Disrupted . | . . . . . . . . . . . . . . . . . . . . . . . . . . . Combat Hostiles . | . . . . . . . . . . . . . . . . . . . . . . . . . . . Robots Corrupted 2 | . . . . . . . . . . . . . . . . . . 2 . . . . . . . . Combat Hostiles . | . . . . . . . . . . . . . . . . . . . . . . . . . . . Parts Fried 6 | . . . . . . . . . . . . . . . . . . 6 . . . . . . . . Impact Corruptions 6 | . . . . . . . . . . . . . . . . . . 6 . . . . . . . . Robots Melted 1 | . . . 1 . . . . . . . . . . . . . . . . . . . . . . . Combat Hostiles 1 | . . . 1 . . . . . . . . . . . . . . . . . . . . . . . Parts Melted 7 | . 4 1 1 . . . . . . . . . . . . . . . . . . 1 . . . . Heat Transferred 2459 | 447 939 481 592 . . . . . . . . . . . . . . . . . . . . . . . Parts Sabotaged . | . . . . . . . . . . . . . . . . . . . . . . . . . . . Parts Stolen . | . . . . . . . . . . . . . . . . . . . . . . . . . . . Parts Stripped . | . . . . . . . . . . . . . . . . . . . . . . . . . . . Power Chain Reactions . | . . . . . . . . . . . . . . . . . . . . . . . . . . . Alert | -11 -10 -10 -10 -8 -7 -7 -7 -7 -6 -6 -6 -6 -6 -5 -5 -5 -5 -5 -4 -4 -4 -4 -3 -3 -2 -1 ------- Run | Yrd Mat Min Sub Mat Fac Low Low Dat Pro Fac Low Low Zio Pro Fac Ext Cet Arc Fac Upp Upp War Pro Res Res Acc Maximum Alert Level 3 | . . . . 1 . . . . . 2 . . . . 2 2 1 . 3 . . . . . 3 3 Low Security (%) 61 | 100 100 100 . 56 100 . . . . 51 . . . . 10 . 19 100 55 . . . . 100 91 . Level 1 23 | . . . . 43 . . . . . 3 . . . . 62 79 80 . 12 . . . . . 3 . Level 2 10 | . . . . . . . . . . 44 . . . . 26 20 . . 23 . . . . . 4 11 Level 3 4 | . . . . . . . . . . . . . . . . . . . 8 . . . . . . 88 Level 4 . | . . . . . . . . . . . . . . . . . . . . . . . . . . . Level 5 . | . . . . . . . . . . . . . . . . . . . . . . . . . . . High Security . | . . . . . . . . . . . . . . . . . . . . . . . . . . . Max Security . | . . . . . . . . . . . . . . . . . . . . . . . . . . . Peak Influence 1049 | 10 82 102 . 328 75 . . . . 541 . . . . 604 433 310 193 747 . . . . 66 727 1049 Initial 436 | . . . . . 11 . . . . 15 . . . . 265 284 212 82 . . . . . 56 . 436 Average 180 | . 16 19 . 146 12 . . . . 259 . . . . 338 355 231 95 271 . . . . 13 71 844 Influence Increases 12128 | 15 230 218 . 613 222 135 288 . 163 916 187 288 29 950 705 1009 317 251 1074 500 285 1352 198 107 1024 1052 Destroy 0b10 Robot/C 5980 | . 140 160 . 400 140 120 220 . 120 440 120 160 20 540 300 440 140 80 360 220 140 700 80 40 400 500 Destroy 0b10 Robot/NC 300 | 15 15 . . 15 20 . . . . 35 . . . 20 10 25 10 35 50 . . 15 . . 5 30 Destroy Leader 760 | . 24 30 . 76 14 . 10 . 10 74 10 30 . 40 80 62 . . 76 30 20 . 20 20 40 94 Allied During Kill 4079 | . . . . 73 15 15 58 . 33 257 57 98 9 350 246 453 150 115 486 250 125 637 98 47 316 191 Successful Hack 204 | . 35 . . 19 33 . . . . 34 . . . . . . 9 . 26 . . . . . 24 24 Disable Machine 90 | . . . . . . . . . . 45 . . . . 15 . . 15 15 . . . . . . . Anti-Garrison Action 200 | . . . . . . . . . . . . . . . . . . . . . . . . . 200 . Destroy Structure 425 | . 16 28 . . . . . . . 16 . . . . 54 14 8 6 46 . . . . . 24 213 Lose Combat Pursuer 90 | . . . . 30 . . . . . 15 . . . . . 15 . . 15 . . . . . 15 . Influence Decreases 11142 | 15 230 148 70 588 247 135 288 . 138 435 514 371 108 545 547 1208 491 458 353 664 383 689 1236 191 297 793 Entered New Map 3419 | . . . 37 . 14 . . . . 10 188 35 96 17 157 296 169 125 . 268 107 459 1122 28 . 291 Time Decay 5916 | 15 230 128 33 358 189 115 268 . 98 395 326 326 12 458 270 542 262 253 293 356 206 110 114 157 180 222 Lost Part 347 | . . 20 . . . . . . . 10 . 10 . 30 . 30 . . . 20 10 . . . 57 160 Lost Ally 1310 | . . . . 80 44 20 20 . 40 20 . . . 40 120 340 60 80 60 20 60 120 . 6 60 120 Purge Threat 150 | . . . . 150 . . . . . . . . . . . . . . . . . . . . . . Squads Dispatched 35 | . . . . . 3 . . . . 3 . . . 1 5 3 . . 2 . . . . 4 1 13 Investigation 5 | . . . . . 1 . . . . 1 . . . 1 . . . . . . . . . 1 1 . Extermination 7 | . . . . . 2 . . . . 1 . . . . 1 . . . 2 . . . . . . 1 Reinforcement 14 | . . . . . . . . . . 1 . . . . 2 3 . . . . . . . 3 . 5 Assault . | . . . . . . . . . . . . . . . . . . . . . . . . . . . Garrison 9 | . . . . . . . . . . . . . . . 2 . . . . . . . . . . 7 Intercept . | . . . . . . . . . . . . . . . . . . . . . . . . . . . Searches Triggered . | . . . . . . . . . . . . . . . . . . . . . . . . . . . Construction Impeded 2 | . . . . . . . . . . . . . . . . 1 . . . . . . . . . 1 Haulers Reinforced 5 | . . . . . . . . . . . . . . . 1 . . . . . . . . 3 . 1 Active Scanning Responses . | . . . . . . . . . . . . . . . . . . . . . . . . . . . Cargo Convoy Interrupts . | . . . . . . . . . . . . . . . . . . . . . . . . . . . Stealth | -11 -10 -10 -10 -8 -7 -7 -7 -7 -6 -6 -6 -6 -6 -5 -5 -5 -5 -5 -4 -4 -4 -4 -3 -3 -2 -1 --------- Run | Yrd Mat Min Sub Mat Fac Low Low Dat Pro Fac Low Low Zio Pro Fac Ext Cet Arc Fac Upp Upp War Pro Res Res Acc Distress Signals 22 | . . 1 . 2 . . . . . . . . . . . 1 2 . 1 . . . . 4 7 4 Communications Jammed 39 | . . . . . . . . . . 8 . . . . . . . . 29 . . . . . 2 . Distress Signals 39 | . . . . . . . . . . 8 . . . . . . . . 29 . . . . . 2 . Times Spotted 375 | . 9 8 10 31 10 10 6 . 9 23 5 8 . 28 9 30 9 13 20 14 6 47 4 11 37 18 Peak Tracking Total 19 | . 3 3 2 7 3 5 3 . 4 5 3 4 . 5 4 4 5 2 5 7 4 19 2 4 9 6 Tactical Retreats 6 | . . . . 2 . . . . . 1 . . . . . 1 . . 1 . . . . . 1 . Traps | -11 -10 -10 -10 -8 -7 -7 -7 -7 -6 -6 -6 -6 -6 -5 -5 -5 -5 -5 -4 -4 -4 -4 -3 -3 -2 -1 ------- Run | Yrd Mat Min Sub Mat Fac Low Low Dat Pro Fac Low Low Zio Pro Fac Ext Cet Arc Fac Upp Upp War Pro Res Res Acc Traps Triggered 9 | . . . 1 . 3 . . . . . . . . 1 . 2 . . 1 . . . . 1 . . Indirectly . | . . . . . . . . . . . . . . . . . . . . . . . . . . . Trap Hack Attempts . | . . . . . . . . . . . . . . . . . . . . . . . . . . . Triggered . | . . . . . . . . . . . . . . . . . . . . . . . . . . . Disarmed . | . . . . . . . . . . . . . . . . . . . . . . . . . . . Reprogrammed . | . . . . . . . . . . . . . . . . . . . . . . . . . . . Reused . | . . . . . . . . . . . . . . . . . . . . . . . . . . . Traps Extracted . | . . . . . . . . . . . . . . . . . . . . . . . . . . . Installed . | . . . . . . . . . . . . . . . . . . . . . . . . . . . Triggered . | . . . . . . . . . . . . . . . . . . . . . . . . . . . Machines | -11 -10 -10 -10 -8 -7 -7 -7 -7 -6 -6 -6 -6 -6 -5 -5 -5 -5 -5 -4 -4 -4 -4 -3 -3 -2 -1 ---------- Run | Yrd Mat Min Sub Mat Fac Low Low Dat Pro Fac Low Low Zio Pro Fac Ext Cet Arc Fac Upp Upp War Pro Res Res Acc Machines Disabled 24 | . . . 1 . . 1 3 . 1 3 1 . . 2 1 2 . 1 1 7 . . . . . . Max in Single Turn 1 | . . . 1 . . . . . . . . . . . . . . . 1 1 . . . . . . Garrison Access 7 | . . . . . . . . . . 1 . . . . 1 . . . 1 . . . . 1 3 . Machines Repaired . | . . . . . . . . . . . . . . . . . . . . . . . . . . . Machines Dismantled . | . . . . . . . . . . . . . . . . . . . . . . . . . . . Machines Sabotaged . | . . . . . . . . . . . . . . . . . . . . . . . . . . . Overloaded Fab Kills . | . . . . . . . . . . . . . . . . . . . . . . . . . . . Hacking | -11 -10 -10 -10 -8 -7 -7 -7 -7 -6 -6 -6 -6 -6 -5 -5 -5 -5 -5 -4 -4 -4 -4 -3 -3 -2 -1 --------- Run | Yrd Mat Min Sub Mat Fac Low Low Dat Pro Fac Low Low Zio Pro Fac Ext Cet Arc Fac Upp Upp War Pro Res Res Acc Machines Accessed 64 | . 7 . 2 11 6 . . 2 . 8 2 1 . 3 3 1 1 1 5 1 . 4 . 2 3 1 Terminals 32 | . 7 . . 9 4 . . . . 3 . . . 1 2 1 1 . 2 . . . . . 1 1 Fabricators 6 | . . . . . 1 . . . . 2 . . . 1 . . . . 1 . . . . 1 . . Repair Stations 1 | . . . . . . . . . . . . . . . . . . . 1 . . . . . . . Recycling Units 4 | . . . . 1 1 . . . . 1 . . . 1 . . . . . . . . . . . . Scanalyzers 4 | . . . . 1 . . . . . 1 . . . . . . . . . . . . . 1 1 . Garrison Access 4 | . . . . . . . . . . 1 . . . . 1 . . . 1 . . . . . 1 . Total Hacks 199 | . 23 . 5 26 16 . . 20 . 21 5 1 . 7 8 2 2 25 11 2 . 6 . 6 9 4 Successful 132 | . 12 . 5 15 8 . . 20 . 12 5 1 . 4 4 . 1 25 6 2 . 6 . 1 4 1 Failed 66 | . 11 . . 10 8 . . . . 9 . . . 3 4 2 1 . 5 . . . . 5 5 3 Catastrophic 18 | . 1 . . 2 3 . . . . 3 . . . 1 . 1 1 . . . . . . 3 3 . Database Lockouts 1 | . . . . 1 . . . . . . . . . . . . . . . . . . . . . . Manual 75 | . 19 . . 19 10 . . . . 8 . . . . 6 2 1 . 6 . . . . . 4 . Terminals 90 | . 23 . . 22 11 . . . . 12 . . . 1 7 2 2 . 3 . . . . . 3 4 Fabricators 16 | . . . . . 1 . . . . 3 . . . 3 . . . . 4 . . . . 5 . . Repair Stations 3 | . . . . . . . . . . . . . . . . . . . 3 . . . . . . . Recycling Units 12 | . . . . 2 4 . . . . 3 . . . 3 . . . . . . . . . . . . Scanalyzers 8 | . . . . 2 . . . . . 1 . . . . . . . . . . . . . 1 4 . Garrison Access 6 | . . . . . . . . . . 2 . . . . 1 . . . 1 . . . . . 2 . Terminal Hacks 85 | . 6 . 5 5 1 . . 20 . 5 5 1 . 1 1 . 1 25 . 2 . 6 . . . 1 Record 41 | . 1 . 4 . . . . . . . 4 . . . . . . 25 . 2 . 5 . . . . Part Schematic 11 | . . . . . . . . 11 . . . . . . . . . . . . . . . . . . Robot Schematic 6 | . . . . . . . . 6 . . . . . . . . . . . . . . . . . . Robot Analysis 3 | . 2 . . 1 . . . . . . . . . . . . . . . . . . . . . . Prototype ID Bank 3 | . . . . . . . . 3 . . . . . . . . . . . . . . . . . . Open Door 7 | . . . . . . . . . . . 1 1 . 1 1 . 1 . . . . 1 . . . 1 Terminal Index 3 | . 1 . . 1 . . . . . 1 . . . . . . . . . . . . . . . . Alert Level 5 | . . . . 1 1 . . . . 3 . . . . . . . . . . . . . . . . Unreport Threat 1 | . . . . 1 . . . . . . . . . . . . . . . . . . . . . . Locate Traps 1 | . 1 . . . . . . . . . . . . . . . . . . . . . . . . . Registered Components 1 | . . . . 1 . . . . . . . . . . . . . . . . . . . . . . Zone Layout 2 | . 1 . . . . . . . . 1 . . . . . . . . . . . . . . . . Proto ID Catalog 1 | . . . 1 . . . . . . . . . . . . . . . . . . . . . . . Fabricator Hacks 7 | . . . . . 1 . . . . 3 . . . 2 . . . . . . . . . 1 . . Load Schematic 3 | . . . . . . . . . . 1 . . . 1 . . . . . . . . . 1 . . Build 4 | . . . . . 1 . . . . 2 . . . 1 . . . . . . . . . . . . Repair Station Hacks 2 | . . . . . . . . . . . . . . . . . . . 2 . . . . . . . Scan Component 1 | . . . . . . . . . . . . . . . . . . . 1 . . . . . . . Repair 1 | . . . . . . . . . . . . . . . . . . . 1 . . . . . . . Recycling Unit Hacks 5 | . . . . 2 2 . . . . . . . . 1 . . . . . . . . . . . . Process 2 | . . . . 1 1 . . . . . . . . . . . . . . . . . . . . . Report Inventory 2 | . . . . 1 . . . . . . . . . 1 . . . . . . . . . . . . Retrieve Matter 1 | . . . . . 1 . . . . . . . . . . . . . . . . . . . . . Scanalyzer 4 | . . . . 1 . . . . . . . . . . . . . . . . . . . . 3 . Retrieve Study 4 | . . . . 1 . . . . . . . . . . . . . . . . . . . . 3 . Garrison Access Hacks 3 | . . . . . . . . . . 1 . . . . 1 . . . 1 . . . . . . . Seal Access 3 | . . . . . . . . . . 1 . . . . 1 . . . 1 . . . . . . . Unauthorized Hacks 26 | . 6 . . 7 4 . . . . 3 . . . . 2 . . . 3 . . . . . 1 . Terminals 22 | . 6 . . 7 4 . . . . 3 . . . . 2 . . . . . . . . . . . Botnet 8 | . 1 . . 2 2 . . . . 2 . . . . 1 . . . . . . . . . . . Skim 14 | . 5 . . 5 2 . . . . 1 . . . . 1 . . . . . . . . . . . Fabricators 3 | . . . . . . . . . . . . . . . . . . . 3 . . . . . . . Report 1 | . . . . . . . . . . . . . . . . . . . 1 . . . . . . . Liberate 1 | . . . . . . . . . . . . . . . . . . . 1 . . . . . . . Fabnet 1 | . . . . . . . . . . . . . . . . . . . 1 . . . . . . . Repair Stations . | . . . . . . . . . . . . . . . . . . . . . . . . . . . Recycling Units . | . . . . . . . . . . . . . . . . . . . . . . . . . . . Scanalyzers . | . . . . . . . . . . . . . . . . . . . . . . . . . . . Garrison Access 1 | . . . . . . . . . . . . . . . . . . . . . . . . . 1 . Jam 1 | . . . . . . . . . . . . . . . . . . . . . . . . . 1 . Data Cores Recovered 3 | . . . . . . . . . . 1 . . . . 1 . . . 1 . . . . . . . Used 1 | . . . . . . . . . . . . . . . . . . . 1 . . . . . . . Hacking Detections 44 | . 7 . . 9 5 . . . . 6 . . . 3 1 1 2 . 4 . . . . 2 3 1 Full Trace Events 4 | . . . . . 1 . . . . 1 . . . 1 . . . . . . . . . 1 . . Feedback Events . | . . . . . . . . . . . . . . . . . . . . . . . . . . . Feedback Blocked . | . . . . . . . . . . . . . . . . . . . . . . . . . . . Robot Schematics Acquired 6 | . . . . . . . . 6 . . . . . . . . . . . . . . . . . . Robots Built . | . . . . . . . . . . . . . . . . . . . . . . . . . . . Authchips . | . . . . . . . . . . . . . . . . . . . . . . . . . . . Time . | . . . . . . . . . . . . . . . . . . . . . . . . . . . Total Robot Build Rating . | . . . . . . . . . . . . . . . . . . . . . . . . . . . Part Schematics Acquired 11 | . . . . . . . . 11 . . . . . . . . . . . . . . . . . . Parts Built 4 | . . . . . 2 . . . . 1 . . . 1 . . . . . . . . . . . . Authchips . | . . . . . . . . . . . . . . . . . . . . . . . . . . . Time 387 | . . . . . 31 . . . . 280 . . . 76 . . . . . . . . . . . . Total Part Build Rating 23 | . . . . . 10 . . . . 8 . . . 5 . . . . . . . . . . . . Part Studies Acquired 4 | . . . . 1 . . . . . . . . . . . . . . . . . . . . 3 . Parts Repaired 1 | . . . . . . . . . . . . . . . . . . . 1 . . . . . . . Time 51 | . . . . . . . . . . . . . . . . . . . 51 . . . . . . . Parts Recycled . | . . . . . . . . . . . . . . . . . . . . . . . . . . . Recycled Matter 234 | . . . . 234 . . . . . . . . . . . . . . . . . . . . . . Retrieved Matter . | . . . . . . . . . . . . . . . . . . . . . . . . . . . Retrieved Components . | . . . . . . . . . . . . . . . . . . . . . . . . . . . Parts Scanalyzed . | . . . . . . . . . . . . . . . . . . . . . . . . . . . Part Schematics Acquired . | . . . . . . . . . . . . . . . . . . . . . . . . . . . Parts Damaged . | . . . . . . . . . . . . . . . . . . . . . . . . . . . Bothacking | -11 -10 -10 -10 -8 -7 -7 -7 -7 -6 -6 -6 -6 -6 -5 -5 -5 -5 -5 -4 -4 -4 -4 -3 -3 -2 -1 ------------ Run | Yrd Mat Min Sub Mat Fac Low Low Dat Pro Fac Low Low Zio Pro Fac Ext Cet Arc Fac Upp Upp War Pro Res Res Acc Used RIF Installer . | . . . . . . . . . . . . . . . . . . . . . . . . . . . Robots Hacked 5 | . . . . . . . . . . . . . . . . . . . . . . . 1 2 2 . Non-combat . | . . . . . . . . . . . . . . . . . . . . . . . . . . . Combat 5 | . . . . . . . . . . . . . . . . . . . . . . . 1 2 2 . Robot Hacks Applied . | . . . . . . . . . . . . . . . . . . . . . . . . . . . Relay Couplers Released 3 | . . . . . . . . . . . . . . . . . . . . . . . . 1 2 . Machine Destruction 3 | . . . . . . . . . . . . . . . . . . . . . . . . 1 2 . Fabnet Peak Effective % 3 | . . . . . . . . . . . . . . . . . . . . . . . 3 3 1 . Autooverrided 5 | . . . . . . . . . . . . . . . . . . . . . . . 1 2 2 . Robots Rewired 33 | . . . . . . . . . 1 . . . . 11 . 17 . . . 4 . . . . . . Allies Hacked 7 | . . . . . 2 . . . . . 1 . . . . . . . . 2 . . . . 2 . Hacks Repelled 1 | . . . . . 1 . . . . . . . . . . . . . . . . . . . . . Allies | -11 -10 -10 -10 -8 -7 -7 -7 -7 -6 -6 -6 -6 -6 -5 -5 -5 -5 -5 -4 -4 -4 -4 -3 -3 -2 -1 -------- Run | Yrd Mat Min Sub Mat Fac Low Low Dat Pro Fac Low Low Zio Pro Fac Ext Cet Arc Fac Upp Upp War Pro Res Res Acc Total Allies 49 | . . . . . . . . . 1 . . . . 11 . 22 5 . . 4 . . 1 2 2 1 Largest Group 14 | . . . . . . . . . 1 1 . . . 10 6 12 14 13 10 10 10 8 4 3 2 1 Highest-Rated Group 838 | . . . . . . . . . 29 24 . . . 249 193 463 838 707 637 633 633 437 192 128 116 73 Highest-Rated Ally 159 | . . . . . . . . . 29 24 . . . 46 46 159 153 96 96 96 96 96 64 47 69 73 Total Orders 15 | . . . . . 1 2 2 . . . . . . 2 . 2 2 . . . . 2 . . . 2 STAY 6 | . . . . . 1 1 1 . . . . . . 1 . . 1 . . . . 1 . . . . ROAM 3 | . . . . . . . . . . . . . . . . 1 . . . . . . . . . 2 FOLLOW 6 | . . . . . . 1 1 . . . . . . 1 . 1 1 . . . . 1 . . . . Ally Attacks 1859 | . . . . 89 34 40 24 . 44 123 30 53 2 175 78 195 79 47 163 84 23 212 19 21 210 114 Total Damage 51246 | . . . . 1995 940 1064 807 . 889 2394 601 1342 145 4749 2088 4349 2170 1315 4898 3080 956 7346 406 537 5144 4031 Kills 317 | . . . . 23 11 5 11 . 6 29 6 8 1 31 18 26 9 4 25 15 7 35 4 2 21 20 Allies Corrupted 5 | . . . . . . . . . . . . 1 . . . . . . 1 . . 1 . . 1 1 Allies Melted 3 | . . . . . . . . . . . . . . . . 1 . . . . . 2 . . . . Borg Created 55 | . . . . 7 2 5 1 . 3 1 1 . . 3 . 6 1 1 4 1 1 2 . 1 14 1 Largest Collective 7 | . . . . 4 2 4 4 . 4 5 6 . . 7 . 6 6 6 6 7 7 7 . 5 5 4 Intel | -11 -10 -10 -10 -8 -7 -7 -7 -7 -6 -6 -6 -6 -6 -5 -5 -5 -5 -5 -4 -4 -4 -4 -3 -3 -2 -1 ------- Run | Yrd Mat Min Sub Mat Fac Low Low Dat Pro Fac Low Low Zio Pro Fac Ext Cet Arc Fac Upp Upp War Pro Res Res Acc Active Infowar (turns) 19041 | 27 992 783 1120 1262 1168 1230 1520 169 611 969 737 722 1250 88 . 603 579 398 844 685 435 714 . 800 1146 189 Optics 1526 | . . . . . . . . . . . . . . . . 582 579 365 . . . . . . . . Sensors 3691 | . . . . . . . . . . . . . . . . . . . 393 552 435 714 . 800 797 . Terrain 11 | 11 . . . . . . . . . . . . . . . . . . . . . . . . . . Structural 1089 | . . . 1089 . . . . . . . . . . . . . . . . . . . . . . . Seismic 1822 | 16 992 783 31 . . . . . . . . . . . . . . . . . . . . . . . Machine Analysis 7898 | . . . . 1262 1168 1230 1520 169 611 969 737 232 . . . . . . . . . . . . . . Jamming 11414 | . . . . . 953 1230 1520 169 611 969 737 722 1250 88 . 21 . 33 844 133 . . . 799 1146 189 Robot Analysis Total 3 | . 2 . . 1 . . . . . . . . . . . . . . . . . . . . . . Derelict Logs Recovered 12 | . . 2 1 . . 1 2 . 1 . 1 . . 2 . . . . . 1 1 . . . . . Drone Launches . | . . . . . . . . . . . . . . . . . . . . . . . . . . . Drone Recoveries . | . . . . . . . . . . . . . . . . . . . . . . . . . . . Exploration | -11 -10 -10 -10 -8 -7 -7 -7 -7 -6 -6 -6 -6 -6 -5 -5 -5 -5 -5 -4 -4 -4 -4 -3 -3 -2 -1 ------------- Run | Yrd Mat Min Sub Mat Fac Low Low Dat Pro Fac Low Low Zio Pro Fac Ext Cet Arc Fac Upp Upp War Pro Res Res Acc Turns Passed 23517 | 102 992 783 1522 1377 1168 1230 1520 169 611 969 737 722 1250 1155 593 1545 579 560 844 815 435 976 454 801 1146 462 Spaces Moved 11597 | 44 382 455 817 653 600 598 773 81 285 491 369 307 650 540 258 520 266 312 387 434 247 555 270 425 626 252 Core 3 | 3 . . . . . . . . . . . . . . . . . . . . . . . . . . Treads 6977 | . 149 455 688 . . . . . . . . 191 650 540 258 520 266 312 387 434 247 555 270 425 611 19 Legs 4474 | 41 233 . 92 653 600 598 773 81 285 491 369 116 . . . . . . . . . . . . 15 127 Wheels 143 | . . . 37 . . . . . . . . . . . . . . . . . . . . . . 106 Hover . | . . . . . . . . . . . . . . . . . . . . . . . . . . . Flight . | . . . . . . . . . . . . . . . . . . . . . . . . . . . Fastest Speed 50 | 50 120 160 120 190 190 190 190 190 190 190 193 193 156 156 157 164 160 160 155 155 155 155 155 155 120 120 Average Speed 175 | 116 179 160 155 194 190 190 190 190 190 191 193 222 182 171 187 198 171 160 156 155 155 155 155 173 158 138 Slowest Speed 260 | 120 260 160 260 200 190 190 190 190 190 195 193 240 240 226 229 245 244 160 160 155 155 155 155 232 245 260 Overloaded Moves . | . . . . . . . . . . . . . . . . . . . . . . . . . . . Propulsion Burnouts . | . . . . . . . . . . . . . . . . . . . . . . . . . . . Robots Hopped . | . . . . . . . . . . . . . . . . . . . . . . . . . . . Potential Cave-ins 10 | . . . . . . . . . . 1 4 . . . . . . . . . . . . . 2 3 Cave-ins Triggered 1 | . . . . . . . . . . . 1 . . . . . . . . . . . . . . . Exploration Rate (%) 53 | 4 67 81 45 61 19 82 90 75 50 21 65 54 84 63 13 88 89 99 11 58 47 66 59 18 23 15 Regions Visited 26 Branch Regions 17 Pre-discovered Areas 9 | . 2 1 1 . . . . . . . 2 . 1 1 . . . . . . 1 . . . . . Known Exits Taken 16 | . . . . 1 1 1 1 . 1 . 1 . . 1 1 . . 1 1 1 1 1 1 1 1 . Unknown Exits Taken 10 | 1 1 1 1 . . . . 1 . 1 . 1 1 . . 1 1 . . . . . . . . . Scrap Searched 29 | . . 1 10 . . 2 2 . 3 . 1 1 4 1 . . . . . 2 2 . . . . . Spaces Dug 47 | . . 8 . . . . . . . . . . . . . . . . 1 4 . . . . . 34 Terrain Destroyed 214 | . 13 36 33 . . . . . . . . . . . . . . . 1 4 . 1 1 . 1 124 Melee 5 | . . . . . . . . . . . . . . . . . . . 1 4 . . . . . . Projectile 7 | . . . . . . . . . . . . . . . . . . . . . . 1 1 . 1 4 AOE 202 | . 13 36 33 . . . . . . . . . . . . . . . . . . . . . . 120 Terrain Rammed . | . . . . . . . . . . . . . . . . . . . . . . . . . . . Walls Destroyed . | . . . . . . . . . . . . . . . . . . . . . . . . . . . Machines Disabled . | . . . . . . . . . . . . . . . . . . . . . . . . . . . Actions | -11 -10 -10 -10 -8 -7 -7 -7 -7 -6 -6 -6 -6 -6 -5 -5 -5 -5 -5 -4 -4 -4 -4 -3 -3 -2 -1 --------- Run | Yrd Mat Min Sub Mat Fac Low Low Dat Pro Fac Low Low Zio Pro Fac Ext Cet Arc Fac Upp Upp War Pro Res Res Acc Total 14221 | 68 624 484 952 751 626 678 824 97 349 519 391 345 715 760 368 1015 392 361 573 536 295 654 304 484 739 317 Wait 1615 | . 188 13 34 42 5 66 49 17 47 14 16 30 57 106 92 317 101 26 111 49 36 75 33 38 42 11 Move 11570 | 44 381 454 816 652 599 597 772 80 284 490 367 306 649 539 257 519 265 311 386 433 246 554 269 424 625 251 Hop . | . . . . . . . . . . . . . . . . . . . . . . . . . . . Pick Up 115 | 4 13 1 12 14 5 2 1 . 1 5 . 2 3 8 5 3 7 3 8 . 2 2 . 4 7 3 Fast Attach 40 | 7 . . 2 1 1 . . . . . 2 . . 3 1 1 2 . 2 3 1 . . 1 7 6 Attach 40 | . . 1 5 3 1 . . . . 3 1 2 . 1 2 2 . . 2 1 . . . 3 6 7 Detach . | . . . . . . . . . . . . . . . . . . . . . . . . . . . Swap 114 | 2 5 1 12 3 3 1 . . 1 3 2 5 2 13 7 12 1 3 8 5 6 6 . 7 5 1 Drop 100 | . 3 . 17 10 7 2 1 . 1 3 1 . 4 8 4 1 14 2 8 2 1 2 . 4 5 . Fire 142 | 11 29 12 54 . . . . . . . . . . . . . . . . . . 11 2 . 5 18 Melee 52 | . . . . . . . . . . . . . . . . . . . 24 17 . . . . . 11 Ram . | . . . . . . . . . . . . . . . . . . . . . . . . . . . Kick 12 | . 4 . . 1 3 4 . . . . . . . . . . . . . . . . . . . . Crush 21 | . 1 2 . . . . . . . . . . . . . 1 . 15 . . . 2 . . . . Escape Stasis 6 | . . . . . . . . . . . 1 . . . . 4 . . . . . . . 1 . . Rewire 333 | . . . . 18 . . . . 12 . . . . 79 . 149 1 . 20 25 2 . . . 19 8 Trap . | . . . . . . . . . . . . . . . . . . . . . . . . . . . Miscellaneous 61 | . . . . 7 2 6 1 . 3 1 1 . . 3 . 6 1 1 4 1 1 2 . 2 18 1 Route ------- -11/Scrapyard -10/Materials (discovered 3 exits: [*Mat x2] / [*Min]) -10/Mines (discovered 3 exits: [*Mat x2] / *Sub) -10/Subcaves (discovered 3 exits: *Mat x2 / Rec) -8/Materials -7/Factory (discovered 3 exits: *Fac x2 / *Low) -7/Lower Caves (discovered 2 exits: *Low / *Dat) -7/Lower Caves (discovered 2 exits: *Fac / *Dat) -7/Data Miner -6/Proximity Caves -6/Factory (discovered 3 exits: *Fac x2 / *Low) -6/Lower Caves -6/Lower Caves -6/Zion -5/Proximity Caves -5/Factory (discovered 2 exits: *Fac / *Ext) -5/Extension (discovered 2 exits: *Fac / *Cet) -5/Cetus (discovered 3 exits: *Fac x2 / *Arc) -5/Archives (discovered 3 exits: *Fac / [*Hub x2]) -4/Factory -4/Upper Caves -4/Upper Caves -4/Warlord -3/Proximity Caves -3/Research (discovered 2 exits: *Res / Tes) -2/Research (discovered 3 exits: *Acc x2 / *Qua) -1/Access To Epsilon Eridani History --------- Turn | Location | Event 4 | -11/Scrapyard | Discovered new exit (range 16) 103 | -11/Scrapyard | Entered Materials 289 | -10/Materials | Discovered new exit (range 15) 302 | -10/Materials | Build established: Mutant 457 | -10/Materials | Discovered new exit (range 15) 677 | -10/Materials | Discovered new exit (range 16) 764 | -10/Materials | Learned Storage stockpile data 831 | -10/Materials | Learned location of Subcaves (-10) 931 | -10/Materials | Learned 4 Subcaves zone layouts 967 | -10/Materials | Learned Storage emergency access door positions 1012 | -10/Materials | Learned Storage trap positions 1068 | -10/Materials | Learned Storage stockpile data 1095 | -10/Materials | Entered Mines 1096 | -10/Mines | Learned location of Storage (-9) 1309 | -10/Mines | Deemed a non-threat by the Exiles lab entrance 1340 | -10/Mines | Learned Materials trap positions 1353 | -10/Mines | Discovered new exit (range 14) 1369 | -10/Mines | Received a Rocket Launcher from a helpful Derelict 1405 | -10/Mines | Learned Materials emergency access door positions 1535 | -10/Mines | Discovered new exit (range 9) 1763 | -10/Mines | Discovered new exit (range 9) 1766 | -10/Mines | Assembled infested the area 1878 | -10/Mines | Entered Subcaves 1879 | -10/Subcaves | Approached by a straggling Scientist 1930 | -10/Subcaves | Core integrity fell below 50% 1975 | -10/Subcaves | Identified exit to Recycling 2008 | -10/Subcaves | Ambushed by Subdwellers from Twisted Machinery 2200 | -10/Subcaves | Visited Clippyterm 2205 | -10/Subcaves | Learned Factory stockpile data 2205 | -10/Subcaves | Learned Factory garrison access intel 2381 | -10/Subcaves | Discovered new exit (range 14) 2467 | -10/Subcaves | Discovered new exit (range 3) 2486 | -10/Subcaves | A swath of the cavern ceiling suddenly collapsed 2911 | -10/Subcaves | Shifting Twisted Machinery released Mak. System Shield 2915 | -10/Subcaves | Shifting Twisted Machinery released Spk. Treads 2954 | -10/Subcaves | Learned location of Zion (-6) 2954 | -10/Subcaves | Met a Zionite searching for "candidates" 2986 | -10/Subcaves | Ambushed by angry Subdweller bent on revenge 3253 | -10/Subcaves | Visited 4L-MR0's lab 3274 | -10/Subcaves | Found Cargo Legs 3275 | -10/Subcaves | Attached Cargo Legs, gained temporary slots: Utility x2 3295 | -10/Subcaves | Found Prototype Special Melee Weapon 3400 | -10/Subcaves | Entered Materials 3400 | -8/Materials | Evolved 4 slots: Propulsion x1, Weapon x3 3401 | -8/Materials | Loaded intel: 14 trap records 3402 | -8/Materials | Identified 1B-0RG's Assimilator 3524 | -8/Materials | Assimilating Administrator 3a into Collective. 3529 | -8/Materials | Assimilating Defender 3a into Collective. 3636 | -8/Materials | Assimilating Defender 3b into Collective. 3909 | -8/Materials | Assimilating Pest 3a into Collective. 4031 | -8/Materials | Assimilating Trooper 3a into Collective. 4048 | -8/Materials | Learned Factory security intel 4075 | -8/Materials | Assimilating Defender 3c into Collective. 4078 | -8/Materials | Learned location of 2 exits from Factory 4096 | -8/Materials | Learned Storage machine intel 4102 | -8/Materials | Learned location of 1 exit from Lower Caves 4103 | -8/Materials | Learned Factory emergency access door positions 4104 | -8/Materials | Learned Storage terminal intel 4105 | -8/Materials | Learned Factory stockpile data 4110 | -8/Materials | Identified exit to Factory 4329 | -8/Materials | Central database locked down 4435 | -8/Materials | Assimilating Defender 3d into Collective. 4777 | -8/Materials | Entered Factory 4777 | -7/Factory | Accompanied by 3 allies 4777 | -7/Factory | Evolved 2 slots: Utility x2 4778 | -7/Factory | Identified exit to Lower Caves 4778 | -7/Factory | Identified exit to Factory 4782 | -7/Factory | Loaded intel: 4 garrison access locations 5488 | -7/Factory | Fabricated Lyr. Medium Armor Plating (x2) 5490 | -7/Factory | Assimilating Hacker 4a into Collective. 5564 | -7/Factory | Discovered exit to Factory (range 8) 5813 | -7/Factory | Assimilating Hacker 4b into Collective. 5945 | -7/Factory | Entered Lower Caves 5945 | -7/Lower Caves | Accompanied by 2 allies 5946 | -7/Lower Caves | Identified exit to Lower Caves 6032 | -7/Lower Caves | Encountered a Warlord checkpoint 6045 | -7/Lower Caves | A Derelict revealed a hidden shortcut to meet someone special 6182 | -7/Lower Caves | Learned Factory stockpile data 6268 | -7/Lower Caves | Spotted B-75 Beast 6280 | -7/Lower Caves | Assimilating Beast 4a into Collective. 6335 | -7/Lower Caves | Attracted the attention of an 0b10 checkpoint 6341 | -7/Lower Caves | Assimilating Fighter 4a into Collective. 6355 | -7/Lower Caves | Assimilating Fighter 4b into Collective. 6826 | -7/Lower Caves | Attracted the attention of an 0b10 outpost 6833 | -7/Lower Caves | Assimilating Trooper 4a into Collective. 6873 | -7/Lower Caves | Assimilating Sentinel 4a into Collective. 7175 | -7/Lower Caves | Entered another Lower Caves area 7175 | -7/Lower Caves | Accompanied by 3 allies 7175 | -7/Lower Caves | Assimilating Hacker 4c into Collective. 7356 | -7/Lower Caves | Attracted the attention of an 0b10 base 7463 | -7/Lower Caves | Discovered exit to Factory (range 15) 7552 | -7/Lower Caves | Identified exit to Data Miner 7818 | -7/Lower Caves | Encountered a Warlord checkpoint 7876 | -7/Lower Caves | Found DCF Scrap (13 items) 7960 | -7/Lower Caves | Learned Factory interactive machine intel 8695 | -7/Lower Caves | Entered Data Miner 8695 | -7/Data Miner | Accompanied by 3 allies 8695 | -7/Data Miner | Discovered new exit (range 7) 8732 | -7/Data Miner | Met Data Miner 8800 | -7/Data Miner | Received God Mode back door access code from Data Miner 8864 | -7/Data Miner | Entered Proximity Caves 8864 | -6/Proximity Caves | Accompanied by 3 allies 8872 | -6/Proximity Caves | Learned 4 Factory zone layouts 9224 | -6/Proximity Caves | Attracted the attention of an 0b10 outpost 9228 | -6/Proximity Caves | Assimilating Sentinel 5a into Collective. 9308 | -6/Proximity Caves | Discovered exit to Factory (range 17) 9353 | -6/Proximity Caves | Assimilating Soldier 5b into Collective. 9360 | -6/Proximity Caves | Assimilating Soldier 5c into Collective. 9475 | -6/Proximity Caves | Entered Factory 9475 | -6/Factory | Accompanied by 5 allies 9475 | -6/Factory | Evolved 2 slots: Propulsion x1, Utility x1 9476 | -6/Factory | Identified exit to Factory 9478 | -6/Factory | Loaded intel: 53 interactive machine locations 9557 | -6/Factory | Assimilating Soldier 5d into Collective. 9567 | -6/Factory | Discovered exit to Factory (range 10) 10066 | -6/Factory | Fabricated Fusion Bomb Launcher? 10297 | -6/Factory | Build established: Scavenger-Mutant 10352 | -6/Factory | Discovered new exit (range 7) 10444 | -6/Factory | Entered Lower Caves 10444 | -6/Lower Caves | Accompanied by 5 allies 10501 | -6/Lower Caves | Encountered a Warlord checkpoint 10606 | -6/Lower Caves | Identified exit to Lower Caves 10865 | -6/Lower Caves | Assimilating Sentinel 5b into Collective. 10878 | -6/Lower Caves | Learned Armory trap positions 10893 | -6/Lower Caves | Attracted the attention of an 0b10 checkpoint 11121 | -6/Lower Caves | Crushed by falling debris 11137 | -6/Lower Caves | Found Alien Artifact 11137 | -6/Lower Caves | Identified Core Expander 11137 | -6/Lower Caves | Installed Core Expander, added new Utility slot 11181 | -6/Lower Caves | Entered another Lower Caves area 11181 | -6/Lower Caves | Accompanied by 6 allies 11856 | -6/Lower Caves | Discovered new exit (range 9) 11903 | -6/Lower Caves | Entered Zion 11903 | -6/Zion | Accompanied by 5 allies 11991 | -6/Zion | Discovered new exit (range 21) 12227 | -6/Zion | Found CR-A16's Pointy Stick 12276 | -6/Zion | Learned location of Armory (-4) 12611 | -6/Zion | Met Imprinter 12712 | -6/Zion | Build established: Derelict-Mutant 13063 | -6/Zion | Found Prototype Device 13153 | -6/Zion | Entered Proximity Caves 13153 | -5/Proximity Caves | Accompanied by 5 allies 13175 | -5/Proximity Caves | Assimilating Soldier 6a into Collective. 13216 | -5/Proximity Caves | Identified Mobile Refinery Mk. CCLXVII 13375 | -5/Proximity Caves | Learned Factory machine intel 13399 | -5/Proximity Caves | Spotted B-75 Beast 13408 | -5/Proximity Caves | Assimilating Beast 6a into Collective. 13511 | -5/Proximity Caves | Spotted B-75 Beast 13512 | -5/Proximity Caves | Entered a huge 0b10 base via the front door 13521 | -5/Proximity Caves | Allies destroyed B-75 Beast 13671 | -5/Proximity Caves | Fabricated Lgt. Regenerative Plating (x1) 13733 | -5/Proximity Caves | Discovered exit to Factory (range 19) 13752 | -5/Proximity Caves | Assimilating Soldier 6b into Collective. 14055 | -5/Proximity Caves | Build established: Commander-Mutant 14118 | -5/Proximity Caves | Lost 4 allies 14308 | -5/Proximity Caves | Entered Factory 14308 | -5/Factory | Accompanied by 13 allies 14308 | -5/Factory | Evolved 2 slots: Power x1, Propulsion x1 14310 | -5/Factory | Loaded intel: 294 machine locations 14633 | -5/Factory | Discovered new exit (range 8) 14649 | -5/Factory | Identified exit to Factory 14743 | -5/Factory | Garrison activated, responded to threat 14764 | -5/Factory | Lost 5 allies 14780 | -5/Factory | Discovered new exit (range 10) 14791 | -5/Factory | Identified exit to Extension 14901 | -5/Factory | Entered Extension 14901 | -5/Extension | Accompanied by 6 allies 15025 | -5/Extension | Build established: Mutant 15126 | -5/Extension | Assimilating Sentinel 6a into Collective. 15195 | -5/Extension | Assimilating Sentinel 6b into Collective. 15312 | -5/Extension | Rescued a captive Derelict 15436 | -5/Extension | Build established: Commander-Mutant 15558 | -5/Extension | Spotted B-75 Beast 15569 | -5/Extension | Spotted B-75 Beast 15574 | -5/Extension | Assimilating Sentinel 6c into Collective. 15585 | -5/Extension | Allies destroyed B-75 Beast 15608 | -5/Extension | Allies destroyed B-75 Beast 15627 | -5/Extension | Lost 4 allies 15635 | -5/Extension | Assimilating Administrator 6a into Collective. 15706 | -5/Extension | Assimilating Sentinel 6d into Collective. 15719 | -5/Extension | Lost 6 allies 15792 | -5/Extension | Assimilating Soldier 6g into Collective. 15878 | -5/Extension | Rescued a captive Derelict 15879 | -5/Extension | Rescued a captive Derelict 15961 | -5/Extension | Build established: Scavenger-Mutant 16092 | -5/Extension | Rescued A7 16270 | -5/Extension | Build established: Commander-Mutant 16326 | -5/Extension | Rescued a captive Derelict 16375 | -5/Extension | Discovered exit to Factory (range 10) 16378 | -5/Extension | Discovered new exit (range 6) 16446 | -5/Extension | Entered Cetus 16446 | -5/Cetus | Accompanied by 17 allies (A7) 16451 | -5/Cetus | Acquired a Cetus Manufacturing Module code from A7 16470 | -5/Cetus | Spotted Cetus Guard 16471 | -5/Cetus | Spotted Cetus Guard 16471 | -5/Cetus | Spotted Cetus Guard 16477 | -5/Cetus | Spotted Cetus Guard 16482 | -5/Cetus | Allies destroyed Cetus Guard 16490 | -5/Cetus | Allies destroyed Cetus Guard 16498 | -5/Cetus | Allies destroyed Cetus Guard 16503 | -5/Cetus | Allies destroyed Cetus Guard 16528 | -5/Cetus | Lost 3 allies 16562 | -5/Cetus | Discovered exit to Factory (range 22) 16711 | -5/Cetus | Started Cetus Manufacturing Module 16736 | -5/Cetus | Manufactured an Enhanced Grunt 16761 | -5/Cetus | Manufactured an Enhanced Grunt 16766 | -5/Cetus | Discovered new exit (range 21) 16786 | -5/Cetus | Manufactured an Enhanced Grunt 16800 | -5/Cetus | Spotted Cetus Guard 16800 | -5/Cetus | Spotted Cetus Guard 16800 | -5/Cetus | Spotted Cetus Guard 16800 | -5/Cetus | Spotted Cetus Guard 16804 | -5/Cetus | Discovered exit to Factory (range 22) 16811 | -5/Cetus | Manufactured an Enhanced Grunt 16823 | -5/Cetus | Assimilating Cetus Guard into Collective. 16825 | -5/Cetus | Allies destroyed Cetus Guard 16836 | -5/Cetus | Manufactured an Enhanced Grunt 16837 | -5/Cetus | Allies destroyed Cetus Guard 16839 | -5/Cetus | Allies destroyed Cetus Guard 16840 | -5/Cetus | Met Revision 17 16845 | -5/Cetus | System corruption reached 10% 17025 | -5/Cetus | Entered Archives 17025 | -5/Archives | Accompanied by 20 allies (A7) 17053 | -5/Archives | Discovered new exit (range 22) 17072 | -5/Archives | Discovered new exit (range 20) 17075 | -5/Archives | Lost 4 allies 17117 | -5/Archives | Discovered exit to Factory (range 14) 17206 | -5/Archives | Unable to access archive contents 17428 | -5/Archives | Assimilating Director 6a into Collective. 17585 | -5/Archives | Entered Factory 17585 | -4/Factory | Accompanied by 16 allies 17585 | -4/Factory | Evolved 2 slots: Utility x1, Weapon x1 17866 | -4/Factory | Assimilating Veteran 7a into Collective. 17988 | -4/Factory | Repaired Corrupted Quantum Reactor 18058 | -4/Factory | Assimilating Sentinel 7a into Collective. 18156 | -4/Factory | Discovered new exit (range 13) 18178 | -4/Factory | Assimilating Sentinel 7b into Collective. 18223 | -4/Factory | Identified exit to Upper Caves 18390 | -4/Factory | Assimilating Assassin 7a into Collective. 18429 | -4/Factory | Entered Upper Caves 18429 | -4/Upper Caves | Accompanied by 14 allies 18462 | -4/Upper Caves | Learned location of 1 exit from Research 18585 | -4/Upper Caves | Attracted the attention of an 0b10 base 18601 | -4/Upper Caves | Assimilating Warden 7a into Collective. 18856 | -4/Upper Caves | Attacked by a delusional Derelict stockpiling Unaware 18994 | -4/Upper Caves | Entered a destroyed Warlord outpost 19065 | -4/Upper Caves | Discovered new exit (range 13) 19074 | -4/Upper Caves | Ambushed by wild Derelicts 19157 | -4/Upper Caves | Identified exit to Upper Caves 19244 | -4/Upper Caves | Entered another Upper Caves area 19244 | -4/Upper Caves | Accompanied by 17 allies 19512 | -4/Upper Caves | Discovered new exit (range 8) 19523 | -4/Upper Caves | Identified exit to Warlord 19547 | -4/Upper Caves | Assimilating Veteran 7e into Collective. 19645 | -4/Upper Caves | Found Corrupted Prototype Device 19645 | -4/Upper Caves | Identified Exp. Thermal Shield 19679 | -4/Upper Caves | Entered Warlord 19679 | -4/Warlord | Accompanied by 15 allies 19731 | -4/Warlord | System corruption cleaned by Quarantine Array 19931 | -4/Warlord | Learned Armory security intel 19931 | -4/Warlord | Learned Factory recycling unit intel 19931 | -4/Warlord | Learned Testing emergency access door positions 19931 | -4/Warlord | Learned Armory stockpile data 20149 | -4/Warlord | Met Warlord 20174 | -4/Warlord | Warlord's base attacked by MAIN.C 20361 | -4/Warlord | Lost 4 allies 20401 | -4/Warlord | Warlord forces counterattacked 20453 | -4/Warlord | Lost 6 allies 20519 | -4/Warlord | Spotted Executioner 20538 | -4/Warlord | Allies destroyed Executioner 20540 | -4/Warlord | Assimilating Archangel 7a into Collective. 20565 | -4/Warlord | Lost 11 allies 20574 | -4/Warlord | Spotted Striker 20574 | -4/Warlord | Spotted Executioner 20582 | -4/Warlord | Allies destroyed Executioner 20583 | -4/Warlord | Assimilating Striker into Collective. 20624 | -4/Warlord | Discovered new exit (range 9) 20635 | -4/Warlord | Identified exit to Proximity Caves 20655 | -4/Warlord | Entered Proximity Caves 20655 | -3/Proximity Caves | Accompanied by 9 allies 20685 | -3/Proximity Caves | Build established: Scavenger-Mutant 21069 | -3/Proximity Caves | Discovered new exit (range 6) 21075 | -3/Proximity Caves | Identified exit to Research 21109 | -3/Proximity Caves | Entered Research 21109 | -3/Research | Accompanied by 9 allies 21109 | -3/Research | Evolved 2 slots: Utility x2 21110 | -3/Research | Identified exit to Testing 21111 | -3/Research | Identified exit to Research 21309 | -3/Research | Revision forces began assault on 0b10 21356 | -3/Research | Met up with Revision 17++ 21377 | -3/Research | System corruption reached 10% 21401 | -3/Research | Lost 4 allies 21587 | -3/Research | Build established: Mutant 21689 | -3/Research | Assimilating Veteran 8a into Collective. 21809 | -3/Research | Research terminal network offline 21910 | -3/Research | Entered another Research area 21910 | -2/Research | Accompanied by 5 allies 21910 | -2/Research | Warlord forces began assault on 0b10 21910 | -2/Research | Evolved 2 slots: Power x1, Propulsion x1 22020 | -2/Research | Research machine network offline 22067 | -2/Research | Assimilating Warden 9a into Collective. 22260 | -2/Research | Borebot progress halted 22266 | -2/Research | Build established: Hacker-Mutant 22296 | -2/Research | Spotted Striker 22296 | -2/Research | Spotted Executioner 22309 | -2/Research | Borebot progress halted 22341 | -2/Research | Lost 6 allies 22360 | -2/Research | Assimilating Executioner into Collective. 22411 | -2/Research | Discovered new exit (range 15) 22429 | -2/Research | Identified exit to Quarantine 22479 | -2/Research | Assimilating Champion 9a into Collective. 22486 | -2/Research | Lost 6 allies 22519 | -2/Research | Assimilating Swordsman 9a into Collective. 22537 | -2/Research | Assimilating Enforcer 9a into Collective. 22542 | -2/Research | Spotted Striker 22549 | -2/Research | Assimilating Striker into Collective. 22554 | -2/Research | Assimilating Champion 9b into Collective. 22561 | -2/Research | Assimilating Annihilator 9a into Collective. 22588 | -2/Research | Lost 4 allies 22600 | -2/Research | Assimilating Enforcer 9b into Collective. 22604 | -2/Research | Assimilating Enforcer 9c into Collective. 22646 | -2/Research | Lost 4 parts (1p2n1w) 22691 | -2/Research | Assimilating Terminator 9a into Collective. 22695 | -2/Research | Assimilating Terminator 9b into Collective. 22697 | -2/Research | Spotted Striker 22705 | -2/Research | Assimilating Annihilator 9b into Collective. 22723 | -2/Research | Allies destroyed Striker 22737 | -2/Research | Spotted Striker 22740 | -2/Research | Allies destroyed Striker 22889 | -2/Research | Spotted Executioner 22904 | -2/Research | Assimilating Executioner into Collective. 22944 | -2/Research | Spotted Striker 22944 | -2/Research | Spotted Executioner 22962 | -2/Research | Allies destroyed Striker 23013 | -2/Research | Discovered new exit (range 6) 23041 | -2/Research | Identified exit to Access 23047 | -2/Research | Discovered exit to Access (range 15) 23056 | -2/Research | Entered Access 23056 | -1/Access | Accompanied by 5 allies 23056 | -1/Access | Evolved 2 slots: Propulsion x1, Utility x1 23104 | -1/Access | Garrison activated, responded to threat 23129 | -1/Access | Garrison activated, responded to threat 23154 | -1/Access | Assimilating Warden 10a into Collective. 23208 | -1/Access | Garrison activated, responded to threat 23216 | -1/Access | Spotted B-99 Colossus 23223 | -1/Access | Spotted B-99 Colossus 23260 | -1/Access | Revealed the true nature of CR-A16's Pointy Stick 23263 | -1/Access | Destroyed B-99 Colossus 23274 | -1/Access | Destroyed B-99 Colossus 23305 | -1/Access | Lost 15 parts (2p5n6u2w) 23338 | -1/Access | Found Prototype Ballistic Gun 23464 | -1/Access | Found Fusion Bomb Launcher 23512 | -1/Access | Discovered new exit (range 6) 23517 | -1/Access | Identified exit to Surface 23518 | *** | Escaped! Last Messages --------------- 23470_ Slug penetrates Wall. 23473_ Penetrated by Slug. 23473_ Slug penetrates Wall. 23473_ Centrium Leg destroyed. 23474_ The unstable cave ceiling collapses. 23477_ H-88 Terminator destroyed. 23479_ The unstable cave ceiling collapses. 23483_ System corrupted: FCS attempts to trigger Linear Accelerator. 23483_ System corrupted: Linear Accelerator misfires. 23483_ The unstable cave ceiling collapses. 23508_ System corrupted: Energy discharge (-15). 23508_ Connecting with Terminal... >>Open(Door) Sealed Barrier opened. 23512_ The Access Shell folds into the floor. 23512_ EXIT=FOUND 23517_ EXIT=IDENTIFIED: SURFACE [Achievement: 30k Club] Map ----- +----------------------------------------------------+ | ?????????????????????????????????????????????????? | | ?????????????????????????????????????????????????? | | ?????????????????????????????????????????????????? | | ?????????????????????????????????????????????????? | | ?????????????????????????????????????????????????? | | ?????????????????????????????????????????????????? | | ?????????????????????????????????????????????????? | | ?????????????????????????????????????????????????? | | ?????????????????????????????????????????????????? | | ?????????????????????????????????????????????????? | | ?????????????#######################+###########?? | | ????????????? | | ????????????? | | ????????????????????# ""#####+#+########### | | ????????????????????# ""#?# | | ????????????????????# ""#?# ]= | | ????????????????????# T#?# ]]= | | ????????????????????# ""###* ]== | | ????????????????????# ""## | | ???????????????????## ""## [ | | ???????????????????# # | | ???????????????????## ## | | ????????????????????# # | | ????????????????????# # ##### | | ????????????????????# # ### #?? | | ????????????????????# @" # #?? | | ????????????????????# "" # #?? | | ????????????????????# # # #?? | | ????????????????????# # #? #?? | | ????????????????????# # ??# [ #?? | | ????????????????????#""""""""""#???? #?? | | ???????????????????????????????????? % [ #?? | | ????????????????????????????????????? #+##### | | ????????????????????#""""""""""#????? # | | ????????????????????#=!! % = #??????#| | | ????????????????????#%%%!!!! #??????#!########## | | ????????????????????#%%% ! #??????#%#????????? | | ????????????????????#! #?######/#######??? | | ????????????????????# %% #?# * #??? | | ????????????????????# % #?# ! #??? | | ????????????????????#% % #?# """"" #??? | | ????????????????????####% ####?# """"" #??? | | ?????################ # #????# """"" #??? | | ?????# # #????# """"" #??? | | ?????# # #????# """"" #??? | | ?????# %# % #????# """"" #??? | | ?????# %# #????# #??? | | ?????# # #????# #??? | | ?????# # #????# #??? | | ?????# # ##???# #??? | +----------------------------------------------------+ Best States ------------- Heat Dissipation 52 Energy Generation 60 Energy Capacity 565 Matter Stores 650 Matter Capacity 650 Sight Range 22 Robot Scan Range 15 Terrain Scan Range 16 Terrain Scan Density 10 Jamming Range 14 Additional Mass Support 9 Armor Coverage 375 Resistance: TH 30 Utility Shielding 66 Evasion (%) 70 Recoil Reduction 6 Matter Filtering 30 Offensive Hacking 12 Defensive Hacking 34 Item Schematics ----------------- Combat Drone Bay | -7/Data Miner | Free Lgt. Regenerative Plating | -7/Data Miner | Free Cld. Cesium-ion Thruster | -7/Data Miner | Free Gravity Neutralizer | -7/Data Miner | Free Ion Burst Cannon | -7/Data Miner | Free Field Propulsion Drive | -7/Data Miner | Free Adv. Field Recycling Unit | -7/Data Miner | Free Hvy. Shock Bomb Launcher | -7/Data Miner | Free Cloaking Device | -7/Data Miner | Free Wave Gun | -7/Data Miner | Free Hvy. Gauss Cannon | -7/Data Miner | Free Robot Schematics ------------------ H-55 Commando | -7/Data Miner | Free H-66 Slayer | -7/Data Miner | Free B-48 Gladiator | -7/Data Miner | Free W-25 Informer | -7/Data Miner | Free Y-54 Guardian | -7/Data Miner | Free B-60 Warrior | -7/Data Miner | Free Fabricated ------------ Lyr. Medium Armor Plating | x2 | -7/Factory | Preloaded Fusion Bomb Launcher | x1 | -6/Factory | Preloaded Lgt. Regenerative Plating | x1 | -5/Proximity Caves Repaired ---------- Quantum Reactor | 85% | -4/Factory | Corrupted Studied --------- Adv. Treads | -8/Materials | Hacked Adv. Medium Treads | -2/Research | Hacked Lgt. Antimatter Reactor | -2/Research | Hacked Mic. Antimatter Reactor | -2/Research | Hacked Alien Tech Used ----------------- Core Expander Achievements -------------- 30k Club Be The Sidekick Challenges ------------ None Game ------ Seed ArmageddonCouplerCompanion Manual? 0 Play Time 02:21:57 Cumulative 153.3 hours Start 2026.02.10 @ 19:14:15 End 2026.02.12 @ 14:36:49 Sessions 5 Manual Loads 0 Difficulty Rogue Special Mode None Game No. 373 Rogue 371 Adventurer 2 Explorer 0 Win Type 0 Total 2 Types 2/0/0/0/0/0/0/0/0/0 Lore% 81 Gallery% 61 Achievement% 46 Wizard Run 0 Options --------- Layout 2 ASCII 0 Keyboard 0 Movement Numpad Keybinds 0 Fullscreen 2 Font 24/Smallcaps Map View 50x44 Zoom Use 0% Tactical HUD 1 Map Filters NONE Filters NONE Steam 1 RUN: 70181f51-4f83-46ac-9b51-872072e03f04